Workbook

Sheet Sheet1
F1: =COLUMN() -> 6 | K1: =COLUMN() -> 11 | P1: =COLUMN() -> 16 | U1: =COLUMN() -> 21 | Z1: =COLUMN() -> 26
B2: o/s | C2: input | D2: 12 | E2: usage | F2: c/s | G2: o/s | H2: input | I2: wk cover | J2: usage | K2: c/s | L2: o/s | M2: input | N2: wk cover | O2: usage | P2: c/s | Q2: o/s | R2: input | S2: wk cover | T2: usage | U2: c/s | V2: o/s | W2: input | X2: wk cover | Y2: usage | Z2: c/s | AA2: o/s | AB2: input | AC2: wk cover | AD2: usage | AE2: c/s
B3: 1520 | E3: 2000 | F3: =B3+C3-E3 -> -480 | G3: =F3 -> -480 | J3: 4000 | K3: =G3+H3-J3 -> -4480 | L3: =K3 -> -4480 | O3: 5000 | P3: =L3+M3-O3 -> -9480 | Q3: =P3 -> -9480 | T3: 1000 | U3: =Q3+R3-T3 -> -10480 | V3: =U3 -> -10480 | Y3: 2000 | Z3: =V3+W3-Y3 -> -12480 | AA3: =Z3 -> -12480 | AD3: 1000 | AE3: =AA3+AB3-AD3 -> -13480 | AH3: =F3 -> -480
B4: 1520 | E4: 2000 | F4: =B4+C4-E4 -> -480 | G4: =F4 -> -480 | J4: 4000 | K4: =G4+H4-J4 -> -4480 | L4: -4480 | O4: 5000 | P4: =L4+M4-O4 -> -9480 | Q4: -9480 | T4: 1000 | U4: =Q4+R4-T4 -> -10480 | V4: -10480 | Y4: 2000 | Z4: =V4+W4-Y4 -> -12480 | AA4: -12480 | AD4: 1000 | AE4: =AA4+AB4-AD4 -> -13480
B5: 1520 | C5: 1200 | E5: 2000 | F5: =B5+C5-E5 -> 720 | G5: =F5 -> 720 | J5: 4000 | K5: =G5+H5-J5 -> -3280 | L5: -3280 | O5: 5000 | P5: =L5+M5-O5 -> -8280 | Q5: -8280 | T5: 1000 | U5: =Q5+R5-T5 -> -9280 | V5: -9280 | Y5: 2000 | Z5: =V5+W5-Y5 -> -11280 | AA5: -11280 | AD5: 1000 | AE5: =AA5+AB5-AD5 -> -12280
B6: 1520 | E6: 2000 | F6: =B6+C6-E6 -> -480 | G6: =F6 -> -480 | J6: 4000 | K6: =G6+H6-J6 -> -4480 | L6: -4480 | O6: 5000 | P6: =L6+M6-O6 -> -9480 | Q6: -9480 | T6: 1000 | U6: =Q6+R6-T6 -> -10480 | V6: -10480 | Y6: 2000 | Z6: =V6+W6-Y6 -> -12480 | AA6: -12480 | AD6: 1000 | AE6: =AA6+AB6-AD6 -> -13480
B7: 1520 | E7: 2000 | F7: =B7+C7-E7 -> -480 | G7: =F7 -> -480 | J7: 4000 | K7: =G7+H7-J7 -> -4480 | L7: -4480 | O7: 5000 | P7: =L7+M7-O7 -> -9480 | Q7: -9480 | T7: 1000 | U7: =Q7+R7-T7 -> -10480 | V7: -10480 | Y7: 2000 | Z7: =V7+W7-Y7 -> -12480 | AA7: -12480 | AD7: 1000 | AE7: =AA7+AB7-AD7 -> -13480
G8: =F8 -> 0 | K8: =G8+H8-J8 -> 0 | L8: 0 | P8: 0 | Q8: 0 | U8: 0 | V8: 0 | Z8: 0 | AA8: 0 | AE8: 0
G9: 0 | K9: 0 | L9: 0 | P9: 0 | Q9: 0 | U9: 0 | V9: 0 | Z9: 0 | AA9: 0 | AE9: 0
G10: 0 | K10: 0 | L10: 0 | P10: 0 | Q10: 0 | U10: 0 | V10: 0 | Z10: 0 | AA10: 0 | AE10: 0
G11: 0 | K11: 0 | L11: 0 | P11: 0 | Q11: 0 | U11: 0 | V11: 0 | Z11: 0 | AA11: 0 | AE11: 0
G12: 0 | K12: 0 | L12: 0 | P12: 0 | Q12: 0 | U12: 0 | V12: 0 | Z12: 0 | AA12: 0 | AE12: 0
G13: 0 | K13: 0 | L13: 0 | P13: 0 | Q13: 0 | U13: 0 | V13: 0 | Z13: 0 | AA13: 0 | AE13: 0
G14: 0 | K14: 0 | L14: 0 | P14: 0 | Q14: 0 | U14: 0 | V14: 0 | Z14: 0 | AA14: 0 | AE14: 0
G15: 0 | K15: 0 | L15: 0 | P15: 0 | Q15: 0 | U15: 0 | V15: 0 | Z15: 0 | AA15: 0 | AE15: 0
G16: 0 | K16: 0 | L16: 0 | P16: 0 | Q16: 0 | U16: 0 | V16: 0 | Z16: 0 | AA16: 0 | AE16: 0
G17: 0 | K17: 0 | L17: 0 | P17: 0 | Q17: 0 | U17: 0 | V17: 0 | Z17: 0 | AA17: 0 | AE17: 0
G18: 0 | K18: 0 | L18: 0 | P18: 0 | Q18: 0 | U18: 0 | V18: 0 | Z18: 0 | AA18: 0 | AE18: 0
G19: 0 | K19: 0 | L19: 0 | P19: 0 | Q19: 0 | U19: 0 | V19: 0 | Z19: 0 | AA19: 0 | AE19: 0
G20: 0 | K20: 0 | L20: 0 | P20: 0 | Q20: 0 | U20: 0 | V20: 0 | Z20: 0 | AA20: 0 | AE20: 0
G21: 0 | K21: 0 | L21: 0 | P21: 0 | Q21: 0 | U21: 0 | V21: 0 | Z21: 0 | AA21: 0 | AE21: 0
G22: 0 | K22: 0 | L22: 0 | P22: 0 | Q22: 0 | U22: 0 | V22: 0 | Z22: 0 | AA22: 0 | AE22: 0
G23: 0 | K23: 0 | L23: 0 | P23: 0 | Q23: 0 | U23: 0 | V23: 0 | Z23: 0 | AA23: 0 | AE23: 0
G24: 0 | K24: 0 | L24: 0 | P24: 0 | Q24: 0 | U24: 0 | V24: 0 | Z24: 0 | AA24: 0 | AE24: 0
G25: 0 | K25: 0 | L25: 0 | P25: 0 | Q25: 0 | U25: 0 | V25: 0 | Z25: 0 | AA25: 0 | AE25: 0
G26: 0 | K26: 0 | L26: 0 | P26: 0 | Q26: 0 | U26: 0 | V26: 0 | Z26: 0 | AA26: 0 | AE26: 0
G27: 0 | K27: 0 | L27: 0 | P27: 0 | Q27: 0 | U27: 0 | V27: 0 | Z27: 0 | AA27: 0 | AE27: 0
G28: 0 | K28: 0 | L28: 0 | P28: 0 | Q28: 0 | U28: 0 | V28: 0 | Z28: 0 | AA28: 0 | AE28: 0
G29: 0 | K29: 0 | L29: 0 | P29: 0 | Q29: 0 | U29: 0 | V29: 0 | Z29: 0 | AA29: 0 | AE29: 0
G30: 0 | K30: 0 | L30: 0 | P30: 0 | Q30: 0 | U30: 0 | V30: 0 | Z30: 0 | AA30: 0 | AE30: 0
G31: 0 | K31: 0 | L31: 0 | P31: 0 | Q31: 0 | U31: 0 | V31: 0 | Z31: 0 | AA31: 0 | AE31: 0
G32: 0 | K32: 0 | L32: 0 | P32: 0 | Q32: 0 | U32: 0 | V32: 0 | Z32: 0 | AA32: 0 | AE32: 0
G33: 0 | K33: 0 | L33: 0 | P33: 0 | Q33: 0 | U33: 0 | V33: 0 | Z33: 0 | AA33: 0 | AE33: 0
G34: 0 | K34: 0 | L34: 0 | P34: 0 | Q34: 0 | U34: 0 | V34: 0 | Z34: 0 | AA34: 0 | AE34: 0
G35: 0 | K35: 0 | L35: 0 | P35: 0 | Q35: 0 | U35: 0 | V35: 0 | Z35: 0 | AA35: 0 | AE35: 0
G36: 0 | K36: 0 | L36: 0 | P36: 0 | Q36: 0 | U36: 0 | V36: 0 | Z36: 0 | AA36: 0 | AE36: 0
G37: 0 | K37: 0 | L37: 0 | P37: 0 | Q37: 0 | U37: 0 | V37: 0 | Z37: 0 | AA37: 0 | AE37: 0
G38: 0 | K38: 0 | L38: 0 | P38: 0 | Q38: 0 | U38: 0 | V38: 0 | Z38: 0 | AA38: 0 | AE38: 0
G39: 0 | K39: 0 | L39: 0 | P39: 0 | Q39: 0 | U39: 0 | V39: 0 | Z39: 0 | AA39: 0 | AE39: 0

Sheet Sheet2

Sheet Sheet3
